[Event "FIDE World Rapid-ch Open 2018"]
[White "Jumabayev, Rinat"]
[Black "Timofeev, Artyom"]
[Site "St. Petersburg"]
[Round "15.40"]
[Annotator "ChessBase"]
[Result "1/2-1/2"]
[Date "2018.12.28"]
[WhiteElo "2602"]
[BlackElo "2589"]
[PlyCount "81"]
[TimeControl "900+10"]

1. Nf3 {[%emt 0:0:0]} d5 {[%emt 0:0:0]} 2. g3 {[%emt 0:0:0]} Nf6 {[%emt 0:0:8]
} 3. Bg2 {[%emt 0:0:0]} g6 {[%emt 0:0:2]} 4. c4 {[%emt 0:0:0]} c6 {[%emt 0:0:9]} 5. d4 {[%emt 0:0:5]} Bg7 {[%emt 0:0:9]} 6. 0-0 {[%emt 0:0:3]
} dxc4 {[%emt 0:0:7]} 7. a4 {[%emt 0:0:13]} 0-0 {[%emt 0:0:0]} 8. Na3 {[%emt 0:0:1]} Be6 {[%emt 0:0:10]} 9. Ng5 {[%emt 0:0:4]} Bd5 {[%emt 0:0:24]
} 10. e4 {[%emt 0:0:11]} h6 {[%emt 0:0:2]} 11. exd5 {[%emt 0:0:0]} hxg5 {[%emt 0:0:2]} 12. dxc6 {[%emt 0:0:2]} Nxc6 {[%emt 0:0:1]} 13. d5 {[%emt 0:0:3]} Na5 {[%emt 0:1:45]} 14. Bxg5 {[%emt 0:0:3]} Qb6 {[%emt 0:0:8]
} 15. Qe2 {[%emt 0:3:52]} Rac8 {[%emt 0:0:2]} 16. Nb5 {[%emt 0:1:39]
} a6 {[%emt 0:0:17]} 17. Nc3 {[%emt 0:0:3]} Qb4 {[%emt 0:0:0]} 18. Rfe1 {[%emt 0:0:33]} Rfe8 {[%emt 0:0:2]} 19. Rad1 {[%emt 0:0:2]} b5 {[%emt 0:0:51]} 20. axb5 {[%emt 0:0:16]} axb5 {[%emt 0:0:1]} 21. h4 {[%emt 0:0:12]
} Nb7 {[%emt 0:0:10]} 22. h5 {[%emt 0:0:41]} gxh5 {[%emt 0:0:0]} 23. Ne4 {[%emt 0:0:53]} Nd6 {[%emt 0:0:15]} 24. Bxf6 {[%emt 0:0:37]} exf6 {[%emt 0:0:55]} 25. Qxh5 {[%emt 0:0:27]} f5 {[%emt 0:2:29]} 26. Nxd6 {[%emt 0:0:15]
} Qxd6 {[%emt 0:0:2]} 27. Bh3 {[%emt 0:1:24]} Rxe1+ {[%emt 0:0:0]} 28. Rxe1 {[%emt 0:0:1]} Qxd5 {[%emt 0:0:3]} 29. Bxf5 {[%emt 0:0:0]} Kf8 {[%emt 0:0:43]} 30. Rd1 {[%emt 0:0:25]} Qe5 {[%emt 0:0:34]} 31. Rd7 {[%emt 0:3:18]} Qe1+ {[%emt 0:0:3]} 32. Kg2 {[%emt 0:0:23]} Qe8 {[%emt 0:0:0]} 33. Qd1 {[%emt 0:1:54]} Bf6 {[%emt 0:2:40]} 34. Qd5 {[%emt 0:0:11]} Rd8 {[%emt 0:0:24]} 35. Qxb5 {[%emt 0:1:46]} Rxd7 {[%emt 0:0:9]} 36. Bxd7 {[%emt 0:0:16]
} Qe4+ {[%emt 0:0:4]} 37. Kh2 {[%emt 0:0:3]} Qc2 {[%emt 0:0:0]} 38. Qc5+ {[%emt 0:0:27]} Kg7 {[%emt 0:0:2]} 39. Bb5 {[%emt 0:0:15]} Qh7+ {[%emt 0:0:34]} 40. Kg2 {[%emt 0:0:1]} Qe4+ {[%emt 0:0:1]} 41. Kh2 {[%emt 0:0:5]
} 1/2-1/2

[Event "FIDE World Rapid-ch Open 2018"]
[White "Moiseenko, Vadim"]
[Black "Jones, Gawain C B"]
[Site "St. Petersburg"]
[Round "15.41"]
[Annotator "ChessBase"]
[Result "0-1"]
[Date "2018.12.28"]
[WhiteElo "2501"]
[BlackElo "2682"]
[PlyCount "64"]
[TimeControl "900+10"]

1. e4 {[%emt 0:0:0]} c5 {[%emt 0:0:0]} 2. Nf3 {[%emt 0:0:0]} d6 {[%emt 0:0:0]} 3. d4 {[%emt 0:0:0]} cxd4 {[%emt 0:0:0]} 4. Nxd4 {[%emt 0:0:0]} Nf6 {[%emt 0:0:0]} 5. Nc3 {[%emt 0:0:15]} g6 {[%emt 0:0:0]} 6. Be3 {[%emt 0:0:6]
} Bg7 {[%emt 0:0:0]} 7. f3 {[%emt 0:0:6]} Nc6 {[%emt 0:0:0]
} 8. Qd2 {[%emt 0:0:2]} 0-0 {[%emt 0:0:2]} 9. 0-0-0 {[%emt 0:0:4]} d5 {[%emt 0:0:1]
} 10. Qe1 {[%emt 0:0:5]} e5 {[%emt 0:0:1]} 11. Nxc6 {[%emt 0:0:0]} bxc6 {[%emt 0:0:2]} 12. exd5 {[%emt 0:0:2]} Nxd5 {[%emt 0:0:2]} 13. Bc5 {[%emt 0:0:43]} Bh6+ {[%emt 0:0:26]} 14. Kb1 {[%emt 0:0:1]} Nxc3+ {[%emt 0:0:8]
} 15. bxc3 {[%emt 0:0:1]} Rb8+ {[%emt 0:0:59]} 16. Ka1 {[%emt 0:0:1]
} Qa5 {[%emt 0:0:32]} 17. Bb4 {[%emt 0:1:15]} Qb6 {[%emt 0:0:0]} 18. Rb1 {[%emt 0:3:0]} Rd8 {[%emt 0:0:11]} 19. Bc4 {[%emt 0:0:28]} Bf5 {[%emt 0:0:37]} 20. Qh4 {[%emt 0:0:45]} c5 {[%emt 0:2:2]} 21. Ba3 {[%emt 0:0:0]} Qa5 {[%emt 0:0:8]} 22. Rxb8 {[%emt 0:0:21]} Rxb8 {[%emt 0:0:9]} 23. Bb2 {[%emt 0:0:1]} Rxb2 {[%emt 0:1:12]} 24. Kxb2 {[%emt 0:1:6]} Bd2 {[%emt 0:0:3]
} 25. Bb3 {[%emt 0:3:7]} Qxc3+ {[%emt 0:1:19]} 26. Ka3 {[%emt 0:0:1]
} Be6 {[%emt 0:1:2]} 27. Rd1 {[%emt 0:0:44]} g5 {[%emt 0:0:0]} 28. Qe4 {[%emt 0:0:58]} c4 {[%emt 0:0:22]} 29. Rxd2 {[%emt 0:0:10]} cxb3 {[%emt 0:2:40]} 30. Rd3 {[%emt 0:0:30]} bxa2+ {[%emt 0:0:48]} 31. Rxc3 {[%emt 0:0:4]} a1=Q+ {[%emt 0:0:4]} 32. Kb4 {[%emt 0:0:1]} a5+ {[%emt 0:0:0]} 0-1

[Event "FIDE World Rapid-ch Open 2018"]
[White "Potkin, Vladimir"]
[Black "Steinberg, Nitzan"]
[Site "St. Petersburg"]
[Round "15.42"]
[Annotator "ChessBase"]
[Result "1-0"]
[Date "2018.12.28"]
[WhiteElo "2597"]
[BlackElo "2532"]
[PlyCount "77"]
[TimeControl "900+10"]

1. Nf3 {[%emt 0:0:0]} d5 {[%emt 0:0:0]} 2. e3 {[%emt 0:0:0]} c5 {[%emt 0:0:0]} 3. b3 {[%emt 0:0:12]} Nf6 {[%emt 0:1:2]} 4. Bb2 {[%emt 0:0:3]} Nc6 {[%emt 0:0:46]} 5. Bb5 {[%emt 0:0:8]} Bg4 {[%emt 0:0:2]} 6. h3 {[%emt 0:0:0]} Bxf3 {[%emt 0:0:1]} 7. Bxc6+ {[%emt 0:0:54]} bxc6 {[%emt 0:0:2]} 8. Qxf3 {[%emt 0:0:2]} e6 {[%emt 0:0:30]} 9. d3 {[%emt 0:0:28]} Be7 {[%emt 0:0:20]
} 10. Nd2 {[%emt 0:0:8]} 0-0 {[%emt 0:0:2]} 11. 0-0 {[%emt 0:0:0]} Nd7 {[%emt 0:0:2]} 12. e4 {[%emt 0:1:5]} f5 {[%emt 0:1:7]} 13. exf5 {[%emt 0:0:42]} exf5 {[%emt 0:0:1]} 14. Rae1 {[%emt 0:0:54]} Bf6 {[%emt 0:0:9]
} 15. Bxf6 {[%emt 0:0:25]} Qxf6 {[%emt 0:0:5]} 16. Qf4 {[%emt 0:0:2]
} g5 {[%emt 0:2:39]} 17. Qc7 {[%emt 0:0:21]} Rf7 {[%emt 0:0:0]} 18. Nf3 {[%emt 0:0:3]} g4 {[%emt 0:1:32]} 19. hxg4 {[%emt 0:0:37]} fxg4 {[%emt 0:0:1]} 20. Qg3 {[%emt 0:3:34]} Raf8 {[%emt 0:4:16]} 21. Ne5 Nxe5 {[%emt 0:0:1]} 22. Rxe5 {[%emt 0:1:10]} Qf4 {[%emt 0:1:23]} 23. Qxf4 Rxf4 {[%emt 0:0:1]} 24. Rg5+ {[%emt 0:0:16]} Kh8 {[%emt 0:0:1]} 25. g3 {[%emt 0:0:4]
} h6 {[%emt 0:0:1]} 26. gxf4 {[%emt 0:1:38]} hxg5 {[%emt 0:0:0]} 27. fxg5 {[%emt 0:0:1]} Kg7 {[%emt 0:2:5]} 28. Re1 {[%emt 0:0:3]} c4 {[%emt 0:0:8]} 29. dxc4 {[%emt 0:2:25]} dxc4 {[%emt 0:0:1]} 30. Re4 {[%emt 0:0:53]
} g3 {[%emt 0:0:1]} 31. f4 {[%emt 0:0:12]} cxb3 {[%emt 0:0:0]} 32. axb3 {[%emt 0:0:2]} Rd8 {[%emt 0:0:17]} 33. Kg2 {[%emt 0:0:6]} Rd2+ {[%emt 0:0:7]} 34. Kxg3 {[%emt 0:0:2]} Rxc2 {[%emt 0:0:1]} 35. Kg4 {[%emt 0:0:7]
} a5 {[%emt 0:0:15]} 36. Re7+ {[%emt 0:0:16]} Kf8 {[%emt 0:0:0]} 37. Ra7 {[%emt 0:0:2]} Rb2 {[%emt 0:0:45]} 38. f5 {[%emt 0:0:22]} Rxb3 {[%emt 0:0:3]} 39. g6 {[%emt 0:0:2]} 1-0

[Event "FIDE World Rapid-ch Open 2018"]
[White "Yuffa, Daniil"]
[Black "Adly, Ahmed"]
[Site "St. Petersburg"]
[Round "15.43"]
[Annotator "ChessBase"]
[Result "0-1"]
[Date "2018.12.28"]
[WhiteElo "2572"]
[BlackElo "2626"]
[PlyCount "112"]
[TimeControl "900+10"]

1. d4 {[%emt 0:0:0]} d5 {[%emt 0:0:2]} 2. c4 {[%emt 0:0:0]} c6 {[%emt 0:0:0]} 3. Nc3 {[%emt 0:0:0]} Nf6 {[%emt 0:0:2]} 4. Nf3 {[%emt 0:0:0]} e6 {[%emt 0:0:5]} 5. Bg5 {[%emt 0:0:0]} Nbd7 {[%emt 0:0:1]} 6. e3 {[%emt 0:0:0]} Qa5 {[%emt 0:0:2]} 7. Nd2 {[%emt 0:0:7]} Bb4 {[%emt 0:0:2]} 8. Qc2 {[%emt 0:1:6]} Ne4 {[%emt 0:0:1]} 9. Ndxe4 {[%emt 0:0:20]} dxe4 {[%emt 0:0:11]
} 10. Bf4 {[%emt 0:0:45]} e5 {[%emt 0:0:1]} 11. Bg3 {[%emt 0:0:0]} 0-0 {[%emt 0:0:9]} 12. a3 {[%emt 0:0:29]} exd4 {[%emt 0:0:46]} 13. exd4 {[%emt 0:0:6]} f5 {[%emt 0:0:7]} 14. Bf4 {[%emt 0:0:44]} Nb6 {[%emt 0:0:18]
} 15. Rc1 {[%emt 0:1:32]} Bxc3+ {[%emt 0:0:31]} 16. Qxc3 {[%emt 0:0:7]
} Qxc3+ {[%emt 0:0:3]} 17. Rxc3 {[%emt 0:0:3]} Be6 {[%emt 0:0:0]} 18. Kd2 {[%emt 0:1:55]} Rad8 {[%emt 0:0:52]} 19. Ke3 {[%emt 0:0:2]} c5 {[%emt 0:0:57]} 20. d5 {[%emt 0:2:0]} Bxd5 {[%emt 0:0:15]} 21. Bc7 {[%emt 0:0:1]
} Bc6 {[%emt 0:0:43]} 22. Bxd8 {[%emt 0:0:6]} f4+ {[%emt 0:0:0]} 23. Kd2 {[%emt 0:0:55]} Rxd8+ {[%emt 0:0:33]} 24. Kc1 {[%emt 0:0:1]} Nd7 {[%emt 0:0:43]} 25. Be2 {[%emt 0:0:22]} a5 {[%emt 0:0:31]} 26. Rd1 {[%emt 0:0:14]
} Re8 {[%emt 0:0:1]} 27. g3 {[%emt 0:1:46]} e3 {[%emt 0:2:24]
} 28. fxe3 {[%emt 0:0:13]} fxg3 29. hxg3 {[%emt 0:0:14]} Ne5 {[%emt 0:0:14]} 30. b3 {[%emt 0:0:31]} Be4 {[%emt 0:0:30]} 31. Kd2 {[%emt 0:0:32]} Re6 {[%emt 0:0:16]
} 32. Rf1 {[%emt 0:0:19]} g5 {[%emt 0:0:25]} 33. Ke1 {[%emt 0:0:0]} Rh6 {[%emt 0:0:22]} 34. Rc1 {[%emt 0:0:51]} Rb6 {[%emt 0:1:20]} 35. Rd1 {[%emt 0:1:4]} Rxb3 {[%emt 0:0:9]} 36. Rf6 {[%emt 0:0:29]} Rxe3 {[%emt 0:1:33]
} 37. Kf2 {[%emt 0:0:38]} Rxa3 {[%emt 0:0:1]} 38. Rdd6 {[%emt 0:0:46]
} Bg6 {[%emt 0:0:53]} 39. Rfe6 {[%emt 0:0:18]} Nc6 {[%emt 0:0:0]} 40. Rd7 {[%emt 0:0:19]} Rb3 {[%emt 0:0:34]} 41. Rc7 {[%emt 0:0:25]} Rb2 {[%emt 0:0:13]} 42. Rd6 {[%emt 0:0:19]} Bh5 {[%emt 0:0:20]} 43. Rc8+ {[%emt 0:0:5]
} Kf7 {[%emt 0:0:3]} 44. Rc7+ {[%emt 0:0:2]} Ke8 {[%emt 0:0:0]} 45. Re6+ {[%emt 0:0:4]} Kd8 {[%emt 0:0:3]} 46. Rxh7 {[%emt 0:0:4]} Bg4 {[%emt 0:0:10]} 47. Re4 {[%emt 0:0:16]} Bf5 {[%emt 0:0:59]} 48. Rh8+ {[%emt 0:0:1]
} Kc7 {[%emt 0:0:6]} 49. Ree8 {[%emt 0:0:3]} Nd4 {[%emt 0:0:0]} 50. Ke1 {[%emt 0:0:26]} a4 {[%emt 0:0:1]} 51. Bd1 {[%emt 0:0:25]} a3 {[%emt 0:0:5]
} 52. Ra8 {[%emt 0:0:16]} a2 {[%emt 0:0:9]} 53. Rhf8 {[%emt 0:0:0]} Bc2 {[%emt 0:0:32]} 54. Rf7+ {[%emt 0:0:10]} Kd6 {[%emt 0:0:29]} 55. Rf6+ {[%emt 0:0:0]} Ke5 {[%emt 0:0:15]} 56. Rf2 {[%emt 0:0:16]} Rb1 {[%emt 0:0:9]
} 0-1

[Event "FIDE World Rapid-ch Open 2018"]
[White "Carlsson, Pontus"]
[Black "Amin, Bassem"]
[Site "St. Petersburg"]
[Round "15.44"]
[Annotator "RC"]
[Result "1/2-1/2"]
[Date "2018.12.28"]
[WhiteElo "2463"]
[BlackElo "2710"]
[PlyCount "194"]
[TimeControl "900+10"]

1. e4 {[%emt 0:0:0]} e5 {[%emt 0:0:0]} 2. Nf3 {[%emt 0:0:0]} Nc6 {[%emt 0:0:0]
} 3. d4 {[%emt 0:0:0]} exd4 {[%emt 0:0:0]} 4. Nxd4 {[%emt 0:0:0]} Nf6 {[%emt 0:0:1]} 5. Nc3 {[%emt 0:0:0]} Bb4 {[%emt 0:0:2]} 6. Nxc6 {[%emt 0:0:2]} bxc6 {[%emt 0:0:2]} 7. Bd3 {[%emt 0:0:2]} d5 {[%emt 0:0:4]
} 8. exd5 {[%emt 0:0:1]} Qe7+ {[%emt 0:0:2]} 9. Qe2 {[%emt 0:0:0]} Qxe2+ {[%emt 0:0:2]} 10. Kxe2 {[%emt 0:0:3]} cxd5 {[%emt 0:0:2]} 11. Bf4 {[%emt 0:2:41]} c6 {[%emt 0:0:7]} 12. a3 {[%emt 0:0:31]} Be7 {[%emt 0:0:29]
} 13. Rhe1 {[%emt 0:1:7]} 0-0 {[%emt 0:0:14]} 14. Kf1 {[%emt 0:0:4]
} Be6 {[%emt 0:0:15]} 15. Bg5 {[%emt 0:1:34]} h6 {[%emt 0:0:0]} 16. Bh4 {[%emt 0:0:3]} g5 {[%emt 0:0:25]} 17. Bg3 {[%emt 0:0:3]} Nh5 {[%emt 0:0:21]} 18. Be5 {[%emt 0:0:9]} a5 {[%emt 0:0:29]} 19. Na4 {[%emt 0:0:0]} c5 {[%emt 0:0:25]} 20. Nb6 {[%emt 0:0:46]} Ra7 {[%emt 0:0:4]} 21. c4 {[%emt 0:0:35]} d4 {[%emt 0:0:34]} 22. Nd5 {[%emt 0:1:15]} Bxd5 {[%emt 0:0:0]} 23. cxd5 {[%emt 0:0:1]} Rd8 {[%emt 0:0:12]} 24. Bc4 {[%emt 0:0:10]} Kf8 {[%emt 0:0:55]} 25. a4 {[%emt 0:0:20]} Bd6 {[%emt 0:0:10]} 26. Rac1 {[%emt 0:0:35]
} Rc7 {[%emt 0:0:29]} 27. Bb5 {[%emt 0:2:27]} Nf4 {[%emt 0:0:0]} 28. Bf6 {[%emt 0:0:58]} Rb8 {[%emt 0:0:15]} 29. Be5 {[%emt 0:0:45]} Rd8 {[%emt 0:1:9]} 30. Bf6 {[%emt 0:0:8]} Rdc8 {[%emt 0:0:6]} 31. Bc4 {[%emt 0:0:43]
} Nh5 {[%emt 0:1:24]} 32. Be5 {[%emt 0:0:5]} Bxe5 33. Rxe5 {[%emt 0:0:2]
} Re7 {[%emt 0:0:16]} 34. Rce1 {[%emt 0:1:5]} Rce8 {[%emt 0:0:0]} 35. Rxe7 {[%emt 0:0:7]} Rxe7 {[%emt 0:0:0]} 36. Rc1 {[%emt 0:0:3]
} Nf6 {[%emt 0:0:15]} 37. Bb5 {[%emt 0:0:47]} Nxd5 {[%emt 0:1:14]} 38. Rxc5 {[%emt 0:0:3]} Nb4 {[%emt 0:0:2]} 39. Rc8+ {[%emt 0:1:42]} Kg7 {[%emt 0:0:0]} 40. g3 {[%emt 0:0:8]} d3 {[%emt 0:1:8]} 41. Rd8 {[%emt 0:0:9]} Re2 {[%emt 0:0:6]} 42. Rxd3 {[%emt 0:0:35]} Rxb2 {[%emt 0:0:6]} 43. Rd7 {[%emt 0:0:10]
} Rb1+ {[%emt 0:1:38]} 44. Ke2 {[%emt 0:0:21]} Rb2+ {[%emt 0:0:0]} 45. Kf3 {[%emt 0:0:22]} Kg6 {[%emt 0:0:55]} 46. Rd6+ {[%emt 0:0:20]} f6 {[%emt 0:0:18]} 47. g4 {[%emt 0:0:10]} Nc2 {[%emt 0:0:31]} 48. Bd3+ {[%emt 0:0:17]
} Kf7 {[%emt 0:0:2]} 49. Bc4+ {[%emt 0:0:17]} Kg7 {[%emt 0:0:0]} 50. Rd7+ {[%emt 0:0:4]} Kh8 {[%emt 0:0:3]} 51. Rd8+ {[%emt 0:0:12]} Kg7 {[%emt 0:0:2]} 52. Rd7+ {[%emt 0:0:0]} Kh8 {[%emt 0:0:5]} 53. Rd8+ {[%emt 0:0:26]
} Kg7 {[%emt 0:0:1]} 54. Rd7+ {[%emt 0:0:6]} Kh8 {[%emt 0:0:0]} 55. Rd8+ {[%emt 0:0:14]} Kg7 {[%emt 0:0:2]} 56. Rd7+ {[%emt 0:0:2]} Kh8 {[%emt 0:1:42]} 57. Ke4 {[%emt 0:0:16]} Rb4 {[%emt 0:0:14]} 58. Kd5 {[%emt 0:0:10]
} Rxa4 59. Rc7 {[%emt 0:0:13]} Na3 {[%emt 0:0:36]} 60. Rc8+ {[%emt 0:0:9]
} Kg7 {[%emt 0:0:1]} 61. Rc7+ {[%emt 0:0:1]} Kf8 {[%emt 0:0:0]} 62. Bd3 {[%emt 0:0:4]} Rxg4 {[%emt 0:0:44]} 63. Rc3 {[%emt 0:0:23]} Rf4 {[%emt 0:1:11]} 64. Rxa3 {[%emt 0:0:6]} Rxf2 {[%emt 0:0:31]} 65. Rxa5 Rd2 {[%emt 0:0:4]} 66. Ke4 {[%emt 0:0:23]} Rxh2 {[%emt 0:0:10]} 67. Kf5 {[%emt 0:0:9]
} Rf2+ {[%emt 0:0:8]} 68. Ke6 {[%emt 0:0:7]} h5 {[%emt 0:0:0]} 69. Bf5 {[%emt 0:0:17]} g4 {[%emt 0:0:25]} 70. Kxf6 {[%emt 0:0:5]} Re2 {[%emt 0:0:1]} 71. Be6 {[%emt 0:0:16]} Rf2+ {[%emt 0:0:1]} 72. Bf5 {[%emt 0:0:4]
} Re2 {[%emt 0:0:1]} 73. Ra3 {[%emt 0:0:8]} Re1 {[%emt 0:0:0]} 74. Kg6 {[%emt 0:0:10]} Re5 {[%emt 0:0:28]} 75. Kf6 {[%emt 0:0:14]} Re1 {[%emt 0:0:9]} 76. Rb3 {[%emt 0:0:3]} Re2 {[%emt 0:0:5]} 77. Rc3 {[%emt 0:0:11]
} Re1 {[%emt 0:0:2]} 78. Rc8+ {[%emt 0:0:4]} Re8 {[%emt 0:0:0]} 79. Rc3 {[%emt 0:0:1]} Re1 {[%emt 0:0:3]} 80. Rb3 {[%emt 0:0:6]} Re2 {[%emt 0:0:2]} 81. Kg5 {[%emt 0:0:7]} Re5 {[%emt 0:0:4]} 82. Kf4 {[%emt 0:0:18]
} Rc5 {[%emt 0:0:12]} 83. Rb8+ {[%emt 0:0:31]} Kg7 {[%emt 0:0:0]} 84. Rb7+ {[%emt 0:0:1]} Kf6 {[%emt 0:0:3]} 85. Rb6+ {[%emt 0:0:2]} Kf7 {[%emt 0:0:21]} 86. Rh6 {[%emt 0:0:18]} Rc4+ {[%emt 0:0:13]} 87. Be4 {[%emt 0:0:13]
} Rc5 {[%emt 0:0:4]} 88. Bf5 {[%emt 0:0:16]} Rc4+ {[%emt 0:0:0]} 89. Kg3 {[%emt 0:0:9]} Rc3+ {[%emt 0:0:8]} 90. Kg2 {[%emt 0:0:6]} Rh3 {[%emt 0:0:7]} 91. Ra6 {[%emt 0:0:10]} Kg7 {[%emt 0:0:3]} 92. Be4 {[%emt 0:0:13]
} Re3 {[%emt 0:0:23]} 93. Bf5 {[%emt 0:0:15]} h4 {[%emt 0:0:0]} 94. Rg6+ {[%emt 0:0:9]} Kf7 {[%emt 0:0:1]} 95. Rh6 {[%emt 0:0:10]} Rg3+ {[%emt 0:0:48]} 96. Kh2 {[%emt 0:0:3]} Rh3+ {[%emt 0:0:1]} 97. Kg2 {[%emt 0:0:1]
} Rg3+ {[%emt 0:0:1]} 1/2-1/2

[Event "FIDE World Rapid-ch Open 2018"]
[White "Vallejo Pons, Francisco"]
[Black "Abdusattorov, Nodirbek"]
[Site "St. Petersburg"]
[Round "15.45"]
[Annotator "RC"]
[Result "1/2-1/2"]
[Date "2018.12.28"]
[WhiteElo "2695"]
[BlackElo "2546"]
[PlyCount "126"]
[TimeControl "900+10"]

1. d4 {[%emt 0:0:0]} Nf6 {[%emt 0:0:0]} 2. c4 {[%emt 0:0:0]} e6 {[%emt 0:0:0]} 3. Nc3 {[%emt 0:0:0]} Bb4 {[%emt 0:0:0]} 4. Qc2 {[%emt 0:0:0]} 0-0 {[%emt 0:0:3]} 5. e4 {[%emt 0:0:0]} d6 {[%emt 0:0:10]} 6. e5 {[%emt 0:0:0]} Nfd7 {[%emt 0:0:8]} 7. Nf3 {[%emt 0:0:21]} Nc6 {[%emt 0:0:3]} 8. exd6 {[%emt 0:0:13]} cxd6 {[%emt 0:0:3]} 9. Bd3 {[%emt 0:0:6]} h6 {[%emt 0:0:17]
} 10. 0-0 {[%emt 0:0:42]} Ba5 {[%emt 0:0:5]} 11. a3 {[%emt 0:0:0]} Bb6 {[%emt 0:0:5]} 12. Rd1 {[%emt 0:1:59]} e5 {[%emt 0:1:22]} 13. dxe5 {[%emt 0:0:43]} Ndxe5 {[%emt 0:0:17]} 14. Nxe5 {[%emt 0:1:15]} Nxe5 {[%emt 0:2:13]
} 15. Bf4 {[%emt 0:0:3]} Ng4 {[%emt 0:1:57]} 16. Rd2 {[%emt 0:0:0]} Be6 {[%emt 0:2:13]} 17. h3 {[%emt 0:1:19]} Qf6 {[%emt 0:1:32]} 18. Bxd6 {[%emt 0:0:53]} Nxf2 {[%emt 0:0:44]} 19. Rxf2 {[%emt 0:1:3]} Bxc4 {[%emt 0:0:36]
} 20. Bh7+ {[%emt 0:1:4]} Kh8 21. Bxf8 Rxf8 {[%emt 0:0:11]} 22. Be4 {[%emt 0:1:18]} Qh4 {[%emt 0:0:38]} 23. Bd5 {[%emt 0:0:53]} Bd3 {[%emt 0:0:31]
} 24. Qxd3 {[%emt 0:0:45]} Qxf2+ {[%emt 0:0:3]} 25. Kh1 {[%emt 0:0:1]
} Qxb2 {[%emt 0:0:59]} 26. Rf1 {[%emt 0:0:49]} Qxa3 {[%emt 0:0:0]} 27. Qc4 {[%emt 0:0:46]} Qd6 {[%emt 0:1:0]} 28. Rxf7 {[%emt 0:0:56]} Rxf7 {[%emt 0:0:31]} 29. Bxf7 {[%emt 0:0:2]} Bc7 {[%emt 0:0:2]} 30. Kg1 {[%emt 0:0:9]
} Bb6+ {[%emt 0:0:4]} 31. Kf1 {[%emt 0:0:13]} Qf6+ {[%emt 0:0:0]} 32. Ke2 {[%emt 0:0:39]} Qf2+ {[%emt 0:0:4]} 33. Kd1 {[%emt 0:0:14]} Qg1+ {[%emt 0:0:3]} 34. Kc2 {[%emt 0:0:7]} Qxg2+ {[%emt 0:0:4]} 35. Kb3 {[%emt 0:0:45]
} Qc6 {[%emt 0:1:11]} 36. Qf4 {[%emt 0:0:8]} Qc7 {[%emt 0:0:0]} 37. Qf5 {[%emt 0:0:19]} Qd8 {[%emt 0:1:19]} 38. Bc4 {[%emt 0:0:7]} Bd4 {[%emt 0:0:38]} 39. Nd5 {[%emt 0:0:4]} b5 {[%emt 0:0:33]} 40. Bd3 {[%emt 0:0:0]} g6 {[%emt 0:0:2]} 41. Qe6 {[%emt 0:0:11]} a5 {[%emt 0:0:13]} 42. Bxb5 {[%emt 0:0:28]} Bg7 {[%emt 0:0:13]} 43. Ka4 {[%emt 0:0:17]} Kh7 {[%emt 0:0:19]
} 44. Be8 {[%emt 0:0:2]} Qh4+ {[%emt 0:0:4]} 45. Kxa5 {[%emt 0:0:9]
} Qg5 {[%emt 0:0:6]} 46. Ka6 {[%emt 0:0:6]} h5 {[%emt 0:0:0]} 47. Kb7 {[%emt 0:0:18]} Qg2 {[%emt 0:0:10]} 48. Kc8 {[%emt 0:0:6]} Qc2+ {[%emt 0:0:3]} 49. Kd8 {[%emt 0:0:7]} Qd3 {[%emt 0:0:23]} 50. Bf7 {[%emt 0:0:6]
} Kh6 {[%emt 0:0:6]} 51. Kc8 {[%emt 0:0:23]} Kg5 {[%emt 0:0:0]} 52. Qe7+ {[%emt 0:0:13]} Kh6 {[%emt 0:0:1]} 53. Be6 {[%emt 0:0:4]} Qa6+ {[%emt 0:0:7]} 54. Kd7 {[%emt 0:0:11]} Qb5+ {[%emt 0:0:5]} 55. Kd8 {[%emt 0:0:9]
} Qb8+ {[%emt 0:0:4]} 56. Bc8 {[%emt 0:0:8]} Qe5 {[%emt 0:0:0]} 57. Qxe5 {[%emt 0:0:12]} Bxe5 {[%emt 0:0:2]} 58. Ke7 {[%emt 0:0:11]} g5 {[%emt 0:0:11]} 59. Ke6 {[%emt 0:0:17]} Bg3 {[%emt 0:0:34]} 60. Ne7 {[%emt 0:0:1]
} Be1 {[%emt 0:0:0]} 61. Kf7 {[%emt 0:0:6]} g4 {[%emt 0:0:0]} 62. hxg4 {[%emt 0:0:22]} hxg4 {[%emt 0:0:2]} 63. Bxg4 {[%emt 0:0:10]} Kg5 {[%emt 0:0:2]} 1/2-1/2

[Event "FIDE World Rapid-ch Open 2018"]
[White "Bazeev, German"]
[Black "Shaposhnikov, Evgeny"]
[Site "St. Petersburg"]
[Round "15.46"]
[Annotator "ChessBase"]
[Result "1-0"]
[Date "2018.12.28"]
[WhiteElo "2416"]
[BlackElo "2576"]
[PlyCount "107"]
[TimeControl "900+10"]

1. d4 {[%emt 0:0:0]} Nf6 {[%emt 0:0:0]} 2. Nf3 {[%emt 0:0:0]} e6 {[%emt 0:0:0]
} 3. c4 {[%emt 0:0:0]} b6 {[%emt 0:0:0]} 4. Nc3 {[%emt 0:0:0]} Bb7 {[%emt 0:0:4]} 5. Bg5 {[%emt 0:0:2]} Bb4 {[%emt 0:0:4]} 6. Nd2 {[%emt 0:0:1]
} h6 {[%emt 0:0:16]} 7. Bh4 {[%emt 0:0:3]} Nc6 {[%emt 0:0:12]
} 8. e3 {[%emt 0:0:6]} Ne7 {[%emt 0:0:19]} 9. Bxf6 {[%emt 0:0:2]} gxf6 {[%emt 0:0:2]
} 10. Rc1 {[%emt 0:0:10]} Rg8 {[%emt 0:0:44]} 11. e4 {[%emt 0:0:0]} f5 {[%emt 0:0:38]} 12. d5 {[%emt 0:0:2]} fxe4 {[%emt 0:0:46]} 13. Ndxe4 {[%emt 0:0:2]} Ng6 {[%emt 0:1:54]} 14. a3 {[%emt 0:0:3]} Bxc3+ {[%emt 0:0:28]
} 15. Nxc3 {[%emt 0:1:4]} Qe7 {[%emt 0:0:21]} 16. Be2 {[%emt 0:0:19]
} 0-0-0 {[%emt 0:2:4]} 17. g3 {[%emt 0:1:2]} f5 {[%emt 0:0:0]} 18. 0-0 {[%emt 0:2:48]} f4 {[%emt 0:0:26]} 19. Bf3 {[%emt 0:0:56]} fxg3 {[%emt 0:0:29]} 20. fxg3 {[%emt 0:0:31]} Ne5 {[%emt 0:0:42]} 21. Qd4 {[%emt 0:0:36]
} Qg7 {[%emt 0:0:33]} 22. Qh4 {[%emt 0:0:32]} Rdf8 {[%emt 0:0:0]} 23. Be2 {[%emt 0:0:13]} Ng6 {[%emt 0:0:43]} 24. Rxf8+ {[%emt 0:0:11]} Rxf8 {[%emt 0:0:23]} 25. Qe4 {[%emt 0:0:24]} Nf4 {[%emt 0:0:29]} 26. Rf1 {[%emt 0:0:25]
} Nxe2+ 27. Qxe2 {[%emt 0:0:10]} Qd4+ {[%emt 0:1:48]} 28. Kg2 {[%emt 0:0:5]
} Rxf1 {[%emt 0:0:48]} 29. Qxf1 {[%emt 0:0:10]} Ba6 {[%emt 0:0:0]} 30. Qf8+ {[%emt 0:0:13]} Kb7 {[%emt 0:0:0]} 31. Qf3 {[%emt 0:0:47]} Kb8 {[%emt 0:0:1]} 32. Qf8+ {[%emt 0:0:6]} Kb7 {[%emt 0:0:1]} 33. dxe6 {[%emt 0:0:17]
} dxe6 {[%emt 0:0:3]} 34. Qxh6 {[%emt 0:0:16]} Bxc4 {[%emt 0:0:0]} 35. Qf4 {[%emt 0:0:4]} Qxf4 {[%emt 0:1:8]} 36. gxf4 {[%emt 0:0:3]
} Bd3 {[%emt 0:0:1]} 37. Kf3 {[%emt 0:0:8]} Kc6 {[%emt 0:0:5]} 38. Ke3 {[%emt 0:0:9]
} Bf5 {[%emt 0:0:22]} 39. Kd4 {[%emt 0:0:1]} a6 {[%emt 0:0:0]} 40. h4 {[%emt 0:0:4]} Kd6 {[%emt 0:0:24]} 41. Ne4+ {[%emt 0:0:3]} Ke7 {[%emt 0:0:10]} 42. Ke5 {[%emt 0:0:32]} Bg4 {[%emt 0:1:15]} 43. Nf6 {[%emt 0:0:37]
} Bf5 {[%emt 0:0:4]} 44. Ng8+ {[%emt 0:0:23]} Kf8 {[%emt 0:0:0]} 45. Nh6 {[%emt 0:0:1]} Bh3 {[%emt 0:0:5]} 46. Kf6 {[%emt 0:0:1]} c5 {[%emt 0:0:11]} 47. Nf7 {[%emt 0:0:3]} c4 {[%emt 0:0:39]} 48. Ng5 {[%emt 0:0:0]} Bg4 {[%emt 0:0:2]} 49. Nxe6+ {[%emt 0:0:4]} Kg8 {[%emt 0:0:2]} 50. Nc7 {[%emt 0:0:5]} a5 {[%emt 0:0:7]} 51. Ke5 {[%emt 0:0:47]} Kf7 {[%emt 0:0:5]
} 52. f5 {[%emt 0:0:15]} Be2 {[%emt 0:0:0]} 53. Nd5 {[%emt 0:0:0]} b5 {[%emt 0:0:2]} 54. Nc3 {[%emt 0:0:4]} 1-0